bitfinex-derivatives/quotes_BNBF0:USTF0_20250523
["timestamp","ask_amount","ask_price","bid_price","bid_amount"]
[1748026018482,1.54379314,667.87,667.29,1.11858149]
[1748026018684,1.07190923,667.86,667.29,1.11858149]
[1748026018884,1.07190923,667.85,667.29,1.11858149]
[1748026019085,1.07190923,667.84,667.29,1.11858149]
[1748026019286,1.234,667.88,667.29,1.11858149]
[1748026019484,1.07188561,667.87,667.29,1.11858149]
[1748026019678,1.07188561,667.86,667.29,1.11858149]
[1748026019883,1.07188561,667.85,667.29,1.11858149]
[1748026020081,1.07188561,667.84,667.29,1.11858149]
[1748026020282,1.07190231,667.83,667.29,1.11858149]
[1748026020484,1.234,667.88,667.29,1.11858149]
[1748026020686,1.07187824,667.87,667.29,1.11858149]
[1748026020881,1.07187824,667.86,667.29,1.11858149]
[1748026021083,1.07187824,667.85,667.29,1.11858149]
[1748026021387,1.07187824,667.84,667.29,1.11858149]
[1748026021581,1.234,667.88,667.29,1.11858149]
[1748026021783,1.07169228,667.87,667.29,1.11858149]
[1748026021981,1.07169228,667.86,667.29,1.11858149]
[1748026022186,1.07169228,667.85,667.29,1.11858149]
[1748026022484,1.07169228,667.84,667.29,1.11858149]
[1748026022687,1.07169228,667.83,667.26,1.11858149]
[1748026022989,1.234,667.88,667.26,1.11858149]
[1748026023188,1.54321635,667.87,667.26,1.11858149]
[1748026023391,1.54319148,667.86,667.26,1.11858149]
[1748026023690,1.54319148,667.85,667.26,1.11858149]
[1748026023990,1.54319694,667.84,667.26,1.11858149]
[1748026024292,1.54321215,667.83,667.26,1.11858149]
[1748026024492,1.07161434,667.82,667.26,1.11858149]
[1748026024782,1.234,667.88,667.26,1.11858149]
[1748026024987,1.54316218,667.87,667.26,1.11858149]
[1748026025188,2.65858975,667.86,667.22,1.11858149]
[1748026025384,1.54319676,667.85,667.22,1.11858149]
[1748026025583,1.54319676,667.84,667.22,1.11858149]
[1748026025788,1.54319676,667.83,667.22,1.11858149]
[1748026025991,1.0715738,667.82,667.22,1.11858149]
[1748026026288,1.0715738,667.81,667.22,1.11858149]
[1748026026483,1.0715738,667.8,667.22,1.11858149]
[1748026026688,1.07167937,667.79,667.22,1.11858149]
[1748026026888,1.11542757,667.86,667.22,1.11858149]
[1748026027184,1.54482015,667.85,667.22,1.11858149]
[1748026027388,1.54482015,667.84,667.22,1.11858149]
[1748026027583,1.54482015,667.83,667.22,1.11858149]
[1748026027785,1.07184012,667.82,667.25,1.11858149]
[1748026028088,1.07184012,667.81,667.25,1.11858149]
[1748026028290,1.07184012,667.8,667.25,1.11858149]
[1748026028485,1.07184012,667.79,667.25,1.11858149]
[1748026028686,1.07184012,667.78,667.25,1.11858149]
[1748026028986,1.07184012,667.77,667.25,1.11858149]
[1748026029189,1.07184012,667.76,667.25,1.11858149]
[1748026029489,1.11542757,667.85,667.25,1.11858149]
[1748026029687,1.5452199,667.84,667.25,1.11858149]
[1748026029887,1.11542757,667.82,667.21,1.11858149]
[1748026030083,1.5452199,667.81,667.21,1.11858149]
[1748026030285,1.54534308,667.8,667.21,1.11858149]
[1748026030485,1.07212468,667.79,667.21,1.11858149]
[1748026030688,1.07212468,667.78,667.21,1.11858149]
[1748026030883,1.07212468,667.77,667.21,1.11858149]
[1748026031085,1.07212468,667.76,667.21,1.11858149]
[1748026031284,1.07212468,667.75,667.21,1.11858149]
[1748026031491,1.07212468,667.74,667.21,1.11858149]
[1748026031691,1.11542757,667.82,667.21,1.11858149]
[1748026031990,1.84551619,667.81,667.21,1.11858149]
[1748026032190,1.84552067,667.8,667.21,1.11858149]
[1748026032389,1.84552516,667.79,667.21,1.11858149]
[1748026032588,1.54602981,667.78,667.21,1.11858149]
[1748026032787,0.29949535,667.79,666.13,0.47480983]
[1748026032788,1.11542757,667.74,667.14,1.11858149]
[1748026032985,1.54602981,667.73,667.14,1.11858149]
[1748026033187,1.54602981,667.72,667.14,1.11858149]
[1748026033391,1.54602981,667.71,667.14,1.11858149]
[1748026033590,1.54602981,667.7,667.14,1.11858149]
[1748026033892,1.54589091,667.69,667.14,1.11858149]
[1748026034087,1.07268533,667.68,667.14,1.11858149]
[1748026034286,1.07268533,667.67,667.14,1.11858149]
[1748026034492,1.07268533,667.66,667.14,1.11858149]
[1748026034693,1.11542757,667.74,667.14,1.11858149]
[1748026034887,1.54538212,667.73,667.14,1.11858149]
[1748026035091,2.66080969,667.72,667.11,1.11858149]
[1748026035390,1.54538212,667.71,667.11,1.11858149]
[1748026035589,1.54532678,667.7,667.11,1.11858149]
[1748026035888,1.07222743,667.69,667.11,1.11858149]
[1748026036086,1.07222743,667.68,667.11,1.11858149]
[1748026036290,1.07222743,667.67,667.11,1.11858149]
[1748026036490,1.07222743,667.66,667.11,1.11858149]
[1748026036690,1.07222743,667.65,667.11,1.11858149]
[1748026036893,1.07222743,667.64,667.11,1.11858149]
[1748026037087,1.11542757,667.72,667.11,1.11858149]
[1748026037288,1.84446046,667.71,667.11,1.11858149]
[1748026037490,1.84446494,667.7,667.11,1.11858149]
[1748026037688,1.84446943,667.69,667.11,1.11858149]
[1748026037892,1.54492923,667.68,667.11,1.11858149]
[1748026038088,1.54492923,667.67,667.07,1.11858149]
[1748026038290,1.11542757,667.7,667.07,1.11858149]
[1748026038291,1.84448289,667.66,667.07,1.11858149]
[1748026038492,1.84448738,667.65,667.07,1.11858149]
[1748026038691,1.84449186,667.64,667.07,1.11858149]
[1748026038995,1.84449635,667.63,667.07,1.11858149]
[1748026039295,1.84450084,667.62,667.07,1.11858149]
[1748026039499,1.37148634,667.61,667.07,1.11858149]
[1748026039793,1.07191025,667.6,667.07,1.11858149]
[1748026039998,1.07191025,667.59,667.07,1.11858149]
[1748026040198,1.07191025,667.58,667.07,1.11858149]
[1748026040399,0.29957609,667.61,667.07,1.11858149]
[1748026040594,1.07088006,667.6,667.07,1.11858149]
[1748026040797,1.07088006,667.59,667.07,1.11858149]
[1748026041094,1.0708815,667.58,666.97,1.11858149]
[1748026041293,0.29957609,667.61,666.97,1.11858149]
[1748026041493,1.07099882,667.6,666.97,1.11858149]
[1748026041700,1.07099882,667.59,666.97,1.11858149]
[1748026041895,0.29957609,667.61,666.97,1.11858149]
[1748026042101,1.07090782,667.6,666.97,1.11858149]
[1748026042299,1.07090782,667.59,666.97,1.11858149]
[1748026042499,0.29957609,667.61,666.97,1.11858149]
[1748026042700,1.0707957,667.6,666.97,1.11858149]
[1748026042895,0.29957609,667.61,666.97,1.11858149]
[1748026043099,1.07080109,667.6,666.97,1.11858149]
[1748026043297,0.29957609,667.61,666.95,1.11858149]
[1748026043802,1.07067905,667.6,666.95,1.11858149]
[1748026043998,0.29957609,667.61,666.95,1.11858149]
[1748026044206,1.07067474,667.6,666.95,1.11858149]
[1748026044402,0.29957609,667.61,666.95,1.11858149]
[1748026047611,1.07035951,667.6,666.95,1.11858149]
[1748026047806,1.07028739,667.59,666.95,1.11858149]
[1748026048002,1.07028739,667.58,666.95,1.11858149]
[1748026048204,1.0703547,667.57,666.95,1.11858149]
[1748026048408,1.0703547,667.56,666.95,1.11858149]
[1748026048609,0.29957609,667.61,666.95,1.11858149]
[1748026048810,0.29957609,667.61,666.17,3.72860498]
[1748026048811,1.07014116,667.6,666.9,1.11858149]
[1748026049004,1.07014116,667.59,666.9,1.11858149]
[1748026049206,1.07014116,667.58,666.9,1.11858149]
[1748026049404,1.07014116,667.57,666.9,1.11858149]
[1748026049607,1.41500366,667.61,666.9,1.11858149]
[1748026049805,1.0700318,667.6,666.9,1.11858149]
[1748026050006,1.07003345,667.59,666.9,1.11858149]
[1748026050206,1.07003345,667.58,666.9,1.11858149]
[1748026050508,1.41500366,667.61,666.9,1.11858149]
[1748026050709,1.06992858,667.6,666.9,1.11858149]
[1748026050909,1.41500366,667.61,666.9,1.11858149]
[1748026050910,1.06992858,667.59,666.9,1.11858149]
[1748026051106,1.06992858,667.58,666.9,1.11858149]
[1748026051306,1.41500366,667.61,666.9,1.11858149]
[1748026051507,1.06988328,667.6,666.9,1.11858149]
[1748026051711,1.06988328,667.59,666.9,1.11858149]
[1748026051912,1.06988328,667.58,666.88,1.11858149]
[1748026052114,0.29957609,667.61,666.88,1.11858149]
[1748026052311,1.0699497,667.6,666.88,1.11858149]
[1748026052515,1.0699497,667.59,666.88,1.11858149]
[1748026052811,0.29957609,667.61,666.88,1.11858149]
[1748026053012,1.06980845,667.6,666.88,1.11858149]
[1748026053211,1.06980845,667.59,666.88,1.11858149]
[1748026053410,1.06980845,667.58,666.88,1.11858149]
[1748026053617,0.29957609,667.61,666.88,1.11858149]
[1748026054014,0.29957609,667.61,666.87,1.11858149]
[1748026056216,0.29957609,667.61,666.89,1.11858149]
[1748026057319,1.599,667.6,666.89,1.11858149]
[1748026058620,1.599,667.6,666.91,1.11858149]
[1748026061017,1.599,667.6,667.04,1.11858149]
[1748026062921,1.599,667.6,667.01,1.11858149]
[1748026063127,2.022,667.59,667.01,1.11858149]
[1748026064722,2.022,667.59,667.02,1.11858149]
[1748026066633,2.022,667.59,667.01,1.11858149]
[1748026069932,2.022,667.59,667.04,1.11858149]
[1748026071834,2.022,667.59,666.96,1.11858149]
[1748026074436,2.022,667.59,666.93,1.11858149]
[1748026074638,1.06859711,667.58,666.93,1.11858149]
[1748026074837,1.06859711,667.57,666.93,1.11858149]
[1748026075039,1.06859711,667.56,666.93,1.11858149]
[1748026075240,1.54187055,667.55,666.93,1.11858149]
[1748026075543,1.54187055,667.54,666.93,1.11858149]
[1748026075734,1.54187055,667.53,666.93,1.11858149]
[1748026075939,1.54187055,667.52,666.93,1.11858149]
[1748026076137,1.54187055,667.51,666.93,1.11858149]
[1748026076335,1.54187055,667.5,666.93,1.11858149]
[1748026076541,1.06859711,667.49,666.93,1.11858149]
[1748026076834,1.06859711,667.48,666.93,1.11858149]
[1748026077035,1.06841005,667.47,666.93,1.11858149]
[1748026077238,1.286,667.47,666.81,1.11858149]
[1748026079140,1.06858407,667.46,666.81,1.11858149]
[1748026079442,1.286,667.47,666.79,1.11858149]
[1748026081943,1.286,667.47,666.8,1.11858149]
[1748026082338,1.06958011,667.46,666.8,1.11858149]
[1748026082538,1.286,667.47,666.8,1.11858149]
[1748026082841,1.06957864,667.46,666.8,1.11858149]
[1748026083042,1.286,667.47,666.8,1.11858149]
[1748026084143,1.286,667.47,666.87,1.11858149]
[1748026086546,1.286,667.47,666.89,1.11858149]
[1748026088846,1.286,667.47,666.91,1.11858149]
[1748026089149,1.443,667.46,666.91,1.11858149]
[1748026091345,1.443,667.46,666.93,1.11858149]
[1748026093750,1.443,667.46,666.94,1.11858149]
[1748026096054,1.443,667.46,666.95,1.11858149]
[1748026098258,1.443,667.46,667.05,1.11858149]
[1748026102867,1.343,667.45,667.05,1.11858149]
[1748026103163,1.343,667.45,667.04,1.11858149]
[1748026105770,1.343,667.45,667.09,1.11858149]
[1748026111368,1.343,667.45,667.15,1.11858149]
[1748026113573,1.343,667.45,667.12,1.11858149]
[1748026114975,1.11542757,667.79,667.12,1.11858149]
[1748026114976,1.086,667.51,667.12,1.11858149]
[1748026116674,1.086,667.51,667.14,1.11858149]
[1748026117178,1.295,667.5,667.14,1.11858149]
[1748026120681,1.295,667.5,667.15,1.11858149]
[1748026123485,1.295,667.5,667.11,1.11858149]
[1748026128088,1.295,667.5,666.33,3.72860498]
[1748026128289,1.295,667.5,666.34,0.30014707]
[1748026129991,1.295,667.5,667.11,1.11794185]
[1748026132593,1.295,667.5,667.17,1.11794185]
[1748026134890,1.295,667.5,667.03,1.49058914]
[1748026134891,1.295,667.5,667.19,1.11794185]
[1748026137298,1.086,667.51,667.19,1.11794185]
[1748026139498,1.374,667.5,667.19,1.11794185]
[1748026139697,1.374,667.5,667.22,1.11794185]
[1748026142399,1.374,667.5,667.21,1.11794185]
[1748026144399,1.374,667.5,667.24,1.11794185]
[1748026146798,1.374,667.5,667.25,1.11794185]
[1748026150000,1.374,667.5,667.27,1.11794185]
[1748026151898,1.374,667.5,667.26,1.11794185]
[1748026154597,1.374,667.5,667.27,1.11794185]
[1748026157303,1.374,667.5,667.28,1.11794185]
[1748026160301,1.374,667.5,667.29,1.11794185]
[1748026162607,1.374,667.5,667.33,1.11794185]
[1748026164608,1.374,667.5,667.3,1.11794185]
[1748026166911,1.374,667.5,667.22,1.11794185]
[1748026172622,1.374,667.5,667.25,1.11794185]
[1748026175425,1.374,667.5,667.26,1.11794185]
[1748026178327,1.374,667.5,667.42,1.11794185]
[1748026181128,1.374,667.5,667.43,1.11794185]
[1748026184225,1.374,667.5,667.38,1.11794185]
[1748026184823,1.835,667.82,667.38,1.11794185]
[1748026186531,1.442,667.81,667.38,1.11794185]
[1748026189335,1.442,667.81,667.4,1.11794185]
[1748026191839,1.442,667.81,667.39,1.11794185]
[1748026195441,1.442,667.81,667.42,1.11794185]
[1748026200044,1.442,667.81,667.41,1.11794185]
[1748026202246,1.527,667.8,667.41,1.11794185]
[1748026205250,1.527,667.8,667.4,1.11794185]
[1748026207854,1.527,667.8,667.41,1.11794185]
[1748026209954,1.527,667.8,667.39,1.11794185]
[1748026210254,1.07507526,667.79,667.39,1.11794185]
[1748026210457,1.527,667.8,667.39,1.11794185]
[1748026210755,1.07509514,667.79,667.39,1.11794185]
[1748026210950,1.527,667.8,667.39,1.11794185]
[1748026211153,1.0750725,667.79,667.39,1.11794185]
[1748026211455,1.07509788,667.78,667.39,1.11794185]
[1748026211657,1.527,667.8,667.39,1.11794185]
[1748026211855,1.07509887,667.79,667.39,1.11794185]
[1748026212056,1.07509887,667.78,667.39,1.11794185]
[1748026212257,1.07509887,667.77,667.39,1.11794185]
[1748026212559,1.527,667.8,666.35,5.217062]
[1748026212560,1.07506585,667.76,667.22,1.11794185]
[1748026212751,1.527,667.8,667.22,1.11794185]
[1748026212953,1.07504889,667.79,667.22,1.11794185]
[1748026213255,1.07504889,667.78,667.22,1.11794185]
[1748026213453,1.07504889,667.77,667.22,1.11794185]
[1748026213654,1.07504889,667.76,667.22,1.11794185]
[1748026213857,1.527,667.8,667.22,1.11794185]
[1748026214059,1.07457199,667.79,667.22,1.11794185]
[1748026214254,1.07457199,667.78,667.22,1.11794185]
[1748026214455,1.07453303,667.77,667.22,1.11794185]
[1748026214656,1.07453303,667.76,667.22,1.11794185]
[1748026214858,1.527,667.8,667.22,1.11794185]
[1748026215056,1.07453564,667.79,667.22,1.11794185]
[1748026215257,1.07453564,667.78,667.25,1.11794185]
[1748026215462,1.07453564,667.77,667.25,1.11794185]
[1748026215660,1.07453564,667.76,667.25,1.11794185]
[1748026215860,1.527,667.8,667.25,1.11794185]
[1748026216061,1.07422684,667.79,667.25,1.11794185]
[1748026216265,1.07417543,667.78,667.25,1.11794185]
[1748026216559,1.54693012,667.77,667.25,1.11794185]
[1748026216765,1.07417543,667.76,667.25,1.11794185]
[1748026216962,1.07417543,667.75,667.25,1.11794185]
[1748026217163,1.07417543,667.74,667.25,1.11794185]
[1748026217360,1.07417543,667.73,667.25,1.11794185]
[1748026217560,1.1157985,667.78,667.27,1.11794185]
[1748026217764,1.54635486,667.77,667.27,1.11794185]
[1748026217965,1.07374066,667.76,667.27,1.11794185]
[1748026218164,1.07374066,667.75,667.27,1.11794185]
[1748026218363,1.07374066,667.74,667.27,1.11794185]
[1748026218561,1.07374066,667.73,667.27,1.11794185]
[1748026218764,1.1157985,667.78,667.27,1.11794185]
[1748026218964,1.54663867,667.77,667.27,1.11794185]
[1748026219166,1.07368743,667.76,667.27,1.11794185]
[1748026219366,1.07368743,667.75,667.27,1.11794185]
[1748026219667,1.1157985,667.78,667.26,1.11794185]
[1748026219860,1.0736043,667.77,667.26,1.11794185]
[1748026221565,1.07130171,667.76,667.26,1.11794185]
[1748026221865,1.07130171,667.75,667.26,1.11794185]
[1748026222061,1.07130171,667.74,667.26,1.11794185]
[1748026222261,1.232,667.74,667.26,1.11794185]
[1748026224370,1.309,667.73,667.26,1.11794185]
[1748026225863,1.309,667.73,667.29,1.11794185]
[1748026228370,1.309,667.73,667.26,1.11794185]
[1748026230673,1.07287042,667.72,667.26,1.11794185]
[1748026230869,1.07282921,667.71,667.26,1.11794185]
[1748026231068,1.07282921,667.7,667.22,1.11794185]
[1748026231272,1.07282921,667.69,667.22,1.11794185]
[1748026231474,1.309,667.73,667.22,1.11794185]
[1748026231669,1.07270495,667.72,667.22,1.11794185]
[1748026231874,1.07270495,667.71,667.22,1.11794185]
[1748026232074,1.07270495,667.7,667.22,1.11794185]
[1748026232276,1.07270495,667.69,667.22,1.11794185]
[1748026232470,1.309,667.73,667.22,1.11794185]
[1748026232775,1.54654527,667.72,667.22,1.11794185]
[1748026232974,1.54654527,667.71,667.22,1.11794185]
[1748026233174,1.54654527,667.7,667.22,1.11794185]
[1748026233478,1.54641286,667.69,667.22,1.11794185]
[1748026233675,1.54641286,667.68,667.22,1.11794185]
[1748026233869,1.54641286,667.67,667.22,1.11794185]
[1748026234075,1.309,667.73,667.13,1.11794185]
[1748026234076,2.66221136,667.66,667.13,1.11794185]
[1748026234273,1.07370863,667.65,667.13,1.11794185]
[1748026234470,1.07370863,667.64,667.13,1.11794185]
[1748026234671,1.07370863,667.63,667.13,1.11794185]
[1748026234874,1.1157985,667.66,667.13,1.11794185]
[1748026235071,1.54570912,667.65,667.13,1.11794185]
[1748026235274,1.0731079,667.64,667.13,1.11794185]
[1748026235471,1.0731079,667.63,667.13,1.11794185]
[1748026235671,1.0731079,667.62,667.13,1.11794185]
[1748026235870,1.1157985,667.69,667.07,1.11794185]
[1748026236077,1.54497109,667.68,667.07,1.11794185]
[1748026236276,1.54497109,667.67,667.07,1.11794185]
[1748026236476,1.1157985,667.69,667.07,1.11794185]
[1748026236477,1.07261143,667.66,667.07,1.11794185]
[1748026236673,1.07261143,667.65,667.07,1.11794185]
[1748026236875,1.1157985,667.69,667.07,1.11794185]
[1748026237078,1.54463598,667.68,667.07,1.11794185]
[1748026237278,1.07235653,667.67,667.07,1.11794185]
[1748026237479,1.07235653,667.66,667.07,1.11794185]
[1748026237680,1.1157985,667.69,667.07,1.11794185]
[1748026237880,1.07213787,667.68,667.07,1.11794185]
[1748026238076,1.54432546,667.67,667.07,1.11794185]
[1748026238382,1.07213787,667.66,667.07,1.11794185]
[1748026238577,1.1157985,667.69,667.07,1.11794185]
[1748026238782,1.1157985,667.69,666.94,1.49058914]
[1748026238783,1.07188332,667.68,667.04,1.11794185]
[1748026239079,1.07188332,667.67,667.04,1.11794185]
[1748026239275,1.07188332,667.66,667.04,1.11794185]
[1748026239580,1.07188332,667.65,667.04,1.11794185]
[1748026239781,1.07188332,667.64,667.04,1.11794185]
[1748026240080,1.07188332,667.63,667.04,1.11794185]
[1748026240281,1.1157985,667.7,667.04,1.11794185]
[1748026240483,1.54332254,667.69,667.04,1.11794185]
[1748026240780,2.89332254,667.68,667.04,1.11794185]
[1748026240983,1.07146154,667.67,667.04,1.11794185]
[1748026241182,1.07146154,667.66,667.02,1.11794185]
[1748026241380,1.07146154,667.65,667.02,1.11794185]
[1748026241578,1.07146154,667.64,667.02,1.11794185]
[1748026241777,1.35,667.68,667.02,1.11794185]
[1748026242077,1.07115397,667.67,667.02,1.11794185]
[1748026242284,1.07115397,667.66,667.02,1.11794185]
[1748026242477,1.07115397,667.65,667.02,1.11794185]
[1748026242677,1.07086481,667.64,667.02,1.11794185]
[1748026242880,1.07086481,667.63,667.02,1.11794185]
[1748026243078,1.07086481,667.62,667.02,1.11794185]
[1748026243282,1.35,667.68,667.02,1.11794185]
[1748026243483,1.54210417,667.67,666.96,1.11794185]
[1748026243783,1.54210417,667.66,666.96,1.11794185]
[1748026244084,1.07061256,667.65,666.96,1.11794185]
[1748026244284,1.07061256,667.64,666.96,1.11794185]
[1748026244582,1.07061256,667.63,666.96,1.11794185]
[1748026244782,1.35,667.68,666.96,1.11794185]
[1748026245085,1.5417855,667.67,666.96,1.11794185]
[1748026245285,1.07039136,667.66,666.96,1.11794185]
[1748026245483,1.07039136,667.65,666.96,1.11794185]
[1748026245787,1.35,667.68,666.96,1.11794185]
[1748026245788,1.07039136,667.64,666.96,1.11794185]
[1748026245982,1.35,667.68,666.96,1.11794185]
[1748026246184,1.148,667.63,666.96,1.11794185]
[1748026254087,1.148,667.63,666.98,1.11794185]
[1748026256589,1.148,667.63,666.99,1.11794185]
[1748026265092,1.148,667.63,667.02,1.11794185]
[1748026267294,1.148,667.63,667.03,1.11794185]
[1748026270097,1.148,667.63,666.99,1.11794185]
[1748026273899,1.496,667.62,666.99,1.11794185]
[1748026277303,1.496,667.62,667.07,1.11794185]
[1748026280005,1.496,667.62,667.11,1.11794185]
[1748026281106,1.496,667.62,666.96,1.49058914]
[1748026281107,1.496,667.62,667.12,1.11794185]
[1748026282707,1.496,667.62,667.17,1.11794185]
[1748026285715,1.496,667.62,667.18,1.11794185]
[1748026288414,1.377,667.61,667.18,1.11794185]
[1748026288615,1.377,667.61,667.21,1.11794185]
[1748026290918,1.377,667.61,667.2,1.11794185]
[1748026294523,1.329,667.6,667.2,1.11794185]
[1748026296223,1.329,667.6,667.14,1.11794185]
[1748026298824,1.329,667.6,667.15,1.11794185]
[1748026304125,1.329,667.6,667.14,1.11794185]
[1748026306729,1.329,667.6,667.15,1.11794185]
[1748026308630,1.377,667.61,667.15,1.11794185]
[1748026309430,1.377,667.61,667.09,1.11794185]
[1748026311132,1.986,667.6,667.09,1.11794185]
[1748026311732,1.986,667.6,667.1,1.11794185]
[1748026316434,1.986,667.6,667.11,1.11794185]
[1748026318936,1.986,667.6,667.17,1.11794185]
[1748026321236,1.986,667.6,667.16,1.11794185]
[1748026323437,1.07580537,667.59,667.16,1.11794185]
[1748026323637,1.986,667.6,667.16,1.11794185]
[1748026323831,1.542,667.58,667.18,1.11794185]
[1748026325238,1.0759337,667.57,667.18,1.11794185]
[1748026325435,1.542,667.58,667.18,1.11794185]
[1748026325735,1.07599291,667.57,667.18,1.11794185]
[1748026325931,1.542,667.58,667.18,1.11794185]
[1748026326139,1.07597681,667.57,667.16,1.11794185]
[1748026326437,1.542,667.58,667.16,1.11794185]
[1748026326639,1.07621064,667.57,667.16,1.11794185]
[1748026326837,1.542,667.58,667.16,1.11794185]
[1748026327038,1.0762309,667.57,667.16,1.11794185]
[1748026327338,1.542,667.58,667.16,1.11794185]
[1748026327538,1.07636797,667.57,667.16,1.11794185]
[1748026327738,1.542,667.58,667.16,1.11794185]
[1748026327938,1.07566738,667.57,667.16,1.11794185]
[1748026328137,1.542,667.58,667.16,1.11794185]
[1748026328334,1.542,667.58,667.02,1.49058914]
[1748026328335,1.07567324,667.57,667.17,1.11794185]
[1748026328538,1.542,667.58,667.17,1.11794185]
[1748026328738,1.07574263,667.57,667.17,1.11794185]
[1748026328937,1.542,667.58,667.17,1.11794185]
[1748026329138,1.07573765,667.57,667.17,1.11794185]
[1748026329343,1.542,667.58,667.17,1.11794185]
[1748026329537,1.07579035,667.57,667.17,1.11794185]
[1748026329743,1.07579035,667.56,667.17,1.11794185]
[1748026329938,1.07579035,667.55,667.17,1.11794185]
[1748026330138,1.542,667.58,667.17,1.11794185]
[1748026330343,1.07575429,667.57,667.15,1.11794185]
[1748026330542,1.07575429,667.56,667.15,1.11794185]
[1748026330744,1.07575429,667.55,667.15,1.11794185]
[1748026330938,1.542,667.58,667.15,1.11794185]
[1748026331141,1.07599619,667.57,667.15,1.11794185]
[1748026331342,1.07599619,667.56,667.15,1.11794185]
[1748026331540,1.07599619,667.55,667.15,1.11794185]
[1748026331839,1.07599619,667.54,667.15,1.11794185]
[1748026332043,1.07599619,667.53,667.15,1.11794185]
[1748026332345,2.6577985,667.58,667.16,1.11794185]
[1748026332546,1.07615096,667.57,667.16,1.11794185]
[1748026332741,1.55065058,667.56,667.16,1.11794185]
[1748026332940,1.07615096,667.55,667.16,1.11794185]
[1748026333238,1.07615096,667.54,667.16,1.11794185]
[1748026333442,1.07615096,667.53,667.16,1.11794185]
[1748026333645,1.07615096,667.52,667.16,1.11794185]
[1748026333840,1.07615096,667.51,667.16,1.11794185]
[1748026334043,2.6577985,667.58,667.16,1.11794185]
[1748026334244,1.55065711,667.57,667.16,1.11794185]
[1748026334445,2.66645561,667.56,667.14,1.11794185]
[1748026334644,1.55065711,667.55,667.14,1.11794185]
[1748026334843,1.1157985,667.56,667.14,1.11794185]
[1748026335650,1.55049149,667.55,667.14,1.11794185]
[1748026335843,1.55049151,667.54,667.14,1.11794185]
[1748026336044,1.07604826,667.53,667.14,1.11794185]
[1748026336248,1.07604826,667.52,667.14,1.11794185]
[1748026336450,1.07604826,667.51,667.14,1.11794185]
[1748026336654,1.07604826,667.5,667.14,1.11794185]
[1748026336852,1.1157985,667.56,667.14,1.11794185]
[1748026337053,1.55037707,667.55,667.14,1.11794185]
[1748026337254,1.07596944,667.54,667.12,1.11794185]
[1748026337855,1.119,667.53,667.12,1.11794185]
[1748026338055,1.07596944,667.52,667.12,1.11794185]
[1748026338255,1.07596944,667.51,667.12,1.11794185]
[1748026338457,1.119,667.53,667.12,1.11794185]
[1748026338656,1.07578309,667.52,667.12,1.11794185]
[1748026338856,1.07578309,667.51,667.12,1.11794185]
[1748026339054,1.119,667.53,667.12,1.11794185]
[1748026339254,1.07578425,667.52,667.12,1.11794185]
[1748026339454,1.119,667.53,667.12,1.11794185]
[1748026339654,1.07569873,667.52,667.09,1.11794185]
[1748026339855,1.119,667.53,667.09,1.11794185]
[1748026340054,1.0757027,667.52,667.09,1.11794185]
[1748026340257,1.119,667.53,667.09,1.11794185]
[1748026340557,1.07570977,667.52,667.09,1.11794185]
[1748026340757,1.119,667.53,667.09,1.11794185]
[1748026342157,1.119,667.53,667.1,1.11794185]
[1748026342456,1.287,667.52,667.1,1.11794185]
[1748026347360,1.287,667.52,667.08,1.11794185]
[1748026349058,1.07544335,667.51,667.08,1.11794185]
[1748026349253,1.287,667.52,667.08,1.11794185]
[1748026349456,1.07544158,667.51,667.08,1.11794185]
[1748026349659,1.287,667.52,667.07,1.11794185]
[1748026349860,1.0753538,667.51,667.07,1.11794185]
[1748026350060,1.287,667.52,667.07,1.11794185]
[1748026350253,1.07535438,667.51,667.07,1.11794185]
[1748026350456,1.287,667.52,667.07,1.11794185]
[1748026350857,1.07532803,667.51,667.07,1.11794185]
[1748026351054,1.287,667.52,667.07,1.11794185]
[1748026351258,1.07532287,667.51,667.07,1.11794185]
[1748026351460,1.0754213,667.5,667.05,1.11794185]
[1748026351659,1.287,667.52,667.05,1.11794185]
[1748026351859,1.07543,667.51,667.05,1.11794185]
[1748026352060,1.287,667.52,667.05,1.11794185]
[1748026352261,1.07543718,667.51,667.05,1.11794185]
[1748026352560,1.287,667.52,667.05,1.11794185]
[1748026352761,1.07542273,667.51,667.05,1.11794185]
[1748026352960,1.287,667.52,667.05,1.11794185]
[1748026353163,1.07542391,667.51,667.05,1.11794185]
[1748026353361,1.287,667.52,667.05,1.11794185]
[1748026353663,1.07544074,667.51,667.05,1.11794185]
[1748026353862,1.287,667.52,667.05,1.11794185]
[1748026354062,1.07553829,667.51,667.05,1.11794185]
[1748026354262,1.287,667.52,667.05,1.11794185]
[1748026354463,1.07547408,667.51,667.05,1.11794185]
[1748026354762,1.287,667.52,667.05,1.11794185]